lending/lending_fUSD_20240721
["ID","MTS","AMOUNT","RATE_DAILY","PERIOD"]
[332847260,1721575292224,484.49996538,0.00011105,2]
[332847261,1721575307881,313.25615761,0.00011105,2]
[332847262,1721575308885,3896.69,0.00010842,2]
[332847263,1721575311791,1000.0,0.00010871,2]
[332847264,1721575313796,777.09,8.953e-05,2]
[332847265,1721575314619,225.43552812,0.00011105,2]
[332847266,1721575379023,155.0,0.00011105,2]
[332847267,1721575430534,201.69792095,0.00011105,2]
[332847268,1721575430565,202.33990241,0.00011105,2]
[332847269,1721575443436,155.0,0.00011105,2]
[332847270,1721575472908,168.27941471,0.00011105,2]
[332847271,1721575475273,164.16460495,0.00011105,2]
[332847272,1721575475616,196.8459116,0.00011105,2]
[332847276,1721575501722,155.0,0.00011105,2]
[332847277,1721575519381,6789.57614767,9e-05,2]
[332847278,1721575520030,686.09609962,0.00011105,2]
[332847279,1721575535887,6644.80647799,0.00011,2]
[332847280,1721575555067,7375.27752799,6.94e-05,2]
[332847282,1721575595201,202.77231055,8.412e-05,2]
[332847283,1721575610227,155.18426986,8.412e-05,2]
[332847284,1721575612795,157.90834328,8.412e-05,2]
[332847285,1721575614348,1323.92221372,8.412e-05,2]
[332847286,1721575617444,155.82431433,8.412e-05,2]
[332847287,1721575620040,2507.0563206,0.00011105,2]
[332847289,1721575639569,205.0,9.8e-05,2]
[332847291,1721575666246,266.73419059,0.00011105,2]
[332847293,1721575668370,308.85879004,0.00011105,2]
[332847295,1721575679815,242.90606631,0.00011105,2]
[332847297,1721575682039,5786.90888679,0.0001,2]
[332847298,1721575693985,648.95328694,0.00011105,2]
[332847305,1721575709810,242.90606631,0.00011105,2]
[332847308,1721575749823,243.32,0.0001088,2]
[332847322,1721575832344,-300.0,0.00011185,2]
[332847324,1721575832354,-3245.23594935,0.00011186,2]
[332847326,1721575832368,-441.55013377,0.00011186,2]
[332847331,1721575832521,-1256.0721124,0.00011186,2]
[332847332,1721575832534,-19818.6978481,0.00011186,2]
[332847333,1721575832546,-155.0,0.00011186,2]
[332847334,1721575832557,-183.53156918,0.00011206,2]
[332847335,1721575832574,-159.89551397,0.00011206,2]
[332847336,1721575832585,-1273.72040028,0.00011324,2]
[332847337,1721575832597,-719.02900539,0.00011384,2]
[332847338,1721575832609,-198.7111193,0.00011384,2]
[332847339,1721575832620,-2500.0,0.00011384,2]
[332847340,1721575832630,-150.0,0.00011483,2]
[332847341,1721575832640,-974.1578,0.00011484,2]
[332847342,1721575832651,-1000.0,0.00011484,2]
[332847343,1721575832662,-100000.0,0.00011484,2]
[332847344,1721575832673,-176822.23601718,0.00011484,2]
[332847345,1721575832686,-334.57669976,0.00011484,2]
[332847346,1721575832699,-537.76148,0.00011484,2]
[332847347,1721575832712,-2605.7965384,0.00011484,2]
[332847348,1721575832729,-3380.00047024,0.00011484,2]
[332847350,1721575832742,-6740.11387015,0.00011484,2]
[332847379,1721575838398,-2658.01442427,0.00011484,2]
[332847381,1721575838408,-150.99,0.00011509,2]
[332847383,1721575838418,-800.35,0.00011509,2]
[332847385,1721575838427,-481.14,0.00011525,2]
[332847386,1721575838437,-499.99,0.00011533,2]
[332847387,1721575838446,-196.78351633,0.00011634,2]
[332847388,1721575838456,-885.75859,0.0001168,2]
[332847389,1721575838466,-885.75859,0.0001168,2]
[332847390,1721575838479,-150.0,0.000117,2]
[332847391,1721575838488,-1189.0,0.000117,2]
[332847392,1721575838498,-885.7586,0.000117,2]
[332847393,1721575838510,-150.0,0.000117,2]
[332847394,1721575838520,-150.0,0.000117,2]
[332847395,1721575838534,-150.0,0.000117,2]
[332847396,1721575838543,-839.76,0.000117,2]
[332847397,1721575838552,-150.0,0.000117,2]
[332847398,1721575838563,-885.75859,0.0001174,2]
[332847399,1721575838576,-885.75859,0.0001177,2]
[332847400,1721575838586,-4037.31770087,0.00011799,2]
[332847401,1721575838597,-17610.36139852,0.000118,2]
[332847402,1721575839543,-719.02900539,0.00011324,2]
[332847403,1721575839555,-267006.07240071,0.000118,2]
[332847404,1721575839564,-1000.0,0.000118,2]
[332847405,1721575839577,-151.8269013,0.000118,2]
[332847406,1721575839587,-654.97504175,0.000118,2]
[332847407,1721575839597,-2000.0,0.000118,2]
[332847408,1721575839607,-200.0,0.000118,2]
[332847409,1721575839616,-1000.0,0.000118,2]
[332847410,1721575839626,-2000.0,0.000118,2]
[332847411,1721575839635,-75758.76644119,0.000118,2]
[332847412,1721575839645,-885.75859,0.000118,2]
[332847413,1721575839654,-7500.0,0.000118,2]
[332847414,1721575839663,-500.0,0.00011804,2]
[332847415,1721575839672,-500.0,0.00011805,2]
[332847416,1721575839681,-503.8855,0.0001184,2]
[332847417,1721575839691,-731.91,0.0001189,14]
[332847418,1721575839700,-362969.76777999,0.000119,2]
[332847419,1721575839712,-630.37381688,0.000119,2]
[332847420,1721575839727,-494.48222262,0.000119,2]
[332847421,1721575839738,-490.1733676,0.000119,2]
[332847422,1721575839749,-522.95955266,0.000119,2]
[332847423,1721575839805,-41252.74669472,0.000119,2]
[332847427,1721575840446,-1497.14897604,0.000119,2]
[332847687,1721575843560,-99993.21174769,0.000119,2]
[332847781,1721575846671,-198.96306483,0.000118,2]
[332847782,1721575846680,-374.07672717,0.000119,2]
[332847783,1721575846774,738.23,9.707e-05,2]
[332847784,1721575848845,-73.33795946,0.000119,2]
[332847785,1721575848858,-299.43090198,0.000119,2]
[332847790,1721575915803,-373.0,0.000121,30]
[332847791,1721575924098,2304.8952,0.00011085,2]
[332847792,1721575972008,41152.79055819,0.00011085,2]
[332847793,1721575987378,7561.94507112,0.00011085,2]
[332847794,1721575996751,414171.19697459,0.00011,2]
[332847795,1721575996775,430486.18989641,0.00011,2]
[332847796,1721576102567,160.37287094,0.00011105,2]
[332847797,1721576102592,160.37287094,0.00011105,2]
[332847798,1721576102613,160.37287094,0.00011105,2]
[332847799,1721576102636,160.37287094,0.00011105,2]
[332847800,1721576102659,160.37287094,0.00011105,2]
[332847801,1721576102681,160.37287094,0.00011105,2]
[332847802,1721576102703,160.37287094,0.00011105,2]
[332847803,1721576102724,160.37287094,0.00011105,2]
[332847804,1721576102746,160.37287094,0.00011105,2]
[332847805,1721576102767,160.37287094,0.00011105,2]
[332847806,1721576102789,160.37287094,0.00011105,2]
[332847807,1721576102810,160.37287094,0.00011105,2]
[332847808,1721576102832,160.37287094,0.00011105,2]
[332847809,1721576102853,160.37287094,0.00011105,2]
[332847810,1721576102874,160.37287094,0.00011105,2]
[332847811,1721576102896,160.37287094,0.00011105,2]
[332847812,1721576102918,160.37287094,0.00011105,2]
[332847813,1721576102940,160.37287094,0.00011105,2]
[332847814,1721576102962,160.37287094,0.00011105,2]
[332847815,1721576102983,18.93907598,0.00011105,2]
[332847816,1721576160776,156.81767341,0.00011105,2]
[332847817,1721576168050,150.0,0.00011105,2]
[332847818,1721576168072,87.39221067,0.00011105,2]
[332847819,1721576172009,150.0,0.00011105,2]
[332847820,1721576172032,150.0,0.00011105,2]
[332847821,1721576172054,150.0,0.00011105,2]
[332847822,1721576172076,150.0,0.00011105,2]
[332847823,1721576172097,150.0,0.00011105,2]
[332847824,1721576172119,150.0,0.00011105,2]
[332847825,1721576172140,150.0,0.00011105,2]
[332847826,1721576172162,150.0,0.00011105,2]
[332847827,1721576201655,750.0,0.00011105,2]
[332847828,1721576203523,319.07295113,0.00011086,2]
[332847829,1721576219322,150.0,0.00011105,2]
[332847830,1721576219344,150.0,0.00011105,2]
[332847831,1721576219365,150.0,0.00011105,2]
[332847832,1721576219387,150.0,0.00011105,2]
[332847833,1721576219409,150.0,0.00011105,2]
[332847834,1721576219429,150.0,0.00011105,2]
[332847835,1721576219454,150.0,0.00011105,2]
[332847836,1721576219476,150.0,0.00011105,2]
[332847837,1721576219497,150.0,0.00011105,2]
[332847838,1721576219518,9230.73541226,0.00011105,2]
[332847841,1721576259056,150.0,0.00011105,2]
[332847842,1721576259078,150.0,0.00011105,2]
[332847843,1721576259099,150.0,0.00011105,2]
[332847844,1721576259121,150.0,0.00011105,2]
[332847845,1721576259143,150.0,0.00011105,2]
[332847846,1721576259164,150.0,0.00011105,2]
[332847847,1721576259184,150.0,0.00011105,2]
[332847848,1721576259205,150.0,0.00011105,2]
[332847849,1721576259229,150.0,0.00011105,2]
[332847850,1721576259250,150.0,0.00011105,2]
[332847851,1721576259270,150.0,0.00011105,2]
[332847852,1721576259290,150.0,0.00011105,2]
[332847853,1721576259311,150.0,0.00011105,2]
[332847854,1721576261136,150.0,0.00011105,2]
[332847855,1721576261163,150.0,0.00011105,2]
[332847856,1721576261184,150.0,0.00011105,2]
[332847857,1721576261208,150.0,0.00011105,2]
[332847858,1721576270356,23900.0,0.00010971,2]
[332847859,1721576289183,150.0,0.00011105,2]
[332847860,1721576289204,150.0,0.00011105,2]
[332847861,1721576289227,150.0,0.00011105,2]
[332847862,1721576289248,150.0,0.00011105,2]
[332847863,1721576289270,150.0,0.00011105,2]
[332847864,1721576289291,150.0,0.00011105,2]
[332847865,1721576289312,150.0,0.00011105,2]
[332847866,1721576289334,150.0,0.00011105,2]
[332847867,1721576289358,150.0,0.00011105,2]
[332847868,1721576289380,150.0,0.00011105,2]
[332847869,1721576289401,150.0,0.00011105,2]
[332847870,1721576289422,150.0,0.00011105,2]
[332847871,1721576289443,150.0,0.00011105,2]
[332847872,1721576289464,150.0,0.00011105,2]
[332847873,1721576289486,7157.67538197,0.00011105,2]
[332847874,1721576342052,150.0,0.00011105,2]
[332847875,1721576342074,3249.71436587,0.00011105,2]
[332847876,1721576347502,150.0,0.00011128,2]
[332847877,1721576347527,93.36,0.00011128,2]
[332847878,1721576349053,150.0,0.00010971,2]
[332847879,1721576349077,150.0,0.00010971,2]
[332847880,1721576349099,199.08162602,0.00010971,2]
[332847881,1721576349123,150.0,0.00010971,2]
[332847882,1721576349146,150.0,0.00010971,2]
[332847883,1721576349176,150.0,0.00010971,2]
[332847884,1721576349245,150.0,0.00010971,2]
[332847885,1721576349346,150.0,0.00010971,2]
[332847886,1721576349368,150.0,0.00010971,2]
[332847887,1721576349391,1750.91837398,0.00010971,2]
[332847888,1721576359141,150.0,0.00010971,2]
[332847889,1721576359163,150.0,0.00010971,2]
[332847890,1721576359186,150.0,0.00010971,2]
[332847891,1721576359596,291.13157161,0.00010971,2]
[332847894,1721576371075,200.0,0.000109,3]
[332847895,1721576373179,500.0,0.00011,4]
[332847896,1721576375265,150.0,0.000111,4]
[332847897,1721576375290,150.0,0.000111,4]
[332847898,1721576375312,400.0,0.000111,4]
[332847899,1721576378233,150.0,9.199e-05,2]
[332847900,1721576378257,150.0,9.199e-05,2]
[332847901,1721576378281,150.0,9.199e-05,2]
[332847902,1721576378304,150.0,9.199e-05,2]
[332847903,1721576378326,150.0,9.199e-05,2]
[332847904,1721576378348,99.43,9.199e-05,2]
[332847905,1721576381657,50.57,0.00010959,2]
[332847906,1721576381682,150.0,0.00010959,2]
[332847907,1721576381708,99.43,0.00010959,2]
[332847908,1721576405116,50.57,0.00010881,2]
[332847909,1721576405139,119.07,0.00010881,2]
[332847910,1721576422483,87.57,0.00011105,2]
[332847911,1721576422504,5517.51175338,0.00011105,2]
[332847912,1721576435767,310.0,0.00010959,2]
[332847913,1721576444695,492.92587255,0.00011105,2]
[332847914,1721576451631,300.23984846,0.00010959,2]
[332847916,1721576515533,449.18714164,0.00011105,2]
[332847917,1721576516270,155.36241949,0.00011105,2]
[332847918,1721576536660,250.0,0.00010908,2]
[332847919,1721576589171,250.0,0.00010898,2]
[332847920,1721576597935,151.1,0.00010924,2]
[332847921,1721576598175,151.1,0.00010935,2]
[332847922,1721576598433,151.1,0.00010946,2]
[332847923,1721576598647,151.1,0.00010956,2]
[332847924,1721576598865,151.1,0.00010967,2]
[332847925,1721576599094,151.1,0.00010978,2]
[332847926,1721576599134,1000.0,0.00010924,2]
[332847927,1721576612028,236001.6450066,0.00010908,2]
[332847928,1721576634383,150.0,0.00011106,2]
[332847929,1721576713367,236001.6450066,0.00011106,2]
[332847930,1721576772953,2204.74628846,0.00011105,2]
[332847931,1721576827307,236001.6450066,0.00011105,2]
[332848206,1721576909454,806.95,9.061e-05,2]
[332848207,1721576913282,439.46122706,0.00011105,2]
[332848210,1721576936123,50350.88572654,0.00011105,2]
[332848212,1721576957235,205.34,0.00010909,2]
[332848218,1721577029065,79594.66,0.00010909,2]
[332848219,1721577029089,10000.0,0.00010909,2]
[332848220,1721577029111,10000.0,0.00010909,2]
[332848221,1721577029132,10000.0,0.00010909,2]
[332848222,1721577029154,10000.0,0.00010909,2]
[332848223,1721577029176,10000.0,0.00010909,2]
[332848224,1721577029198,10000.0,0.00010909,2]
[332848225,1721577029220,10000.0,0.00010909,2]
[332848226,1721577029242,10000.0,0.00010909,2]
[332848227,1721577029264,10000.0,0.00010909,2]
[332848228,1721577029287,10000.0,0.00010909,2]
[332848229,1721577029768,-203.73161545,0.00010909,2]
[332848230,1721577030352,-150.0,0.00010909,2]
[332848231,1721577030748,-150.0,0.00010909,2]
[332848237,1721577031695,-150.0,0.00010909,2]
[332848238,1721577031761,-567.2422147,0.00010909,2]
[332848253,1721577037640,-1539.88827973,0.00010909,2]
[332848254,1721577037696,-1001.31797458,0.00010909,2]
[332848255,1721577038602,-160.37287094,0.00010909,2]
[332848256,1721577039097,-160.37287094,0.00010909,2]
[332848257,1721577039519,-160.37287094,0.00010909,2]
[332848258,1721577039783,-4995.51950892,0.00010909,2]
[332848259,1721577039944,-160.37287094,0.00010909,2]
[332848260,1721577040059,-8779.93098994,0.00010909,2]
[332848261,1721577040073,-1645.8301354,0.00010909,2]
[332848282,1721577040355,-160.37287094,0.00010909,2]
[332848318,1721577040771,-160.37287094,0.00010909,2]
[332848353,1721577041170,-160.37287094,0.00010909,2]
[332848391,1721577041584,-160.37287094,0.00010909,2]
[332848479,1721577042567,-160.37287094,0.00010909,2]
[332848498,1721577042724,-2286.87577575,0.00010909,2]
[332848500,1721577042734,-300.0,0.00011104,2]
[332848502,1721577042744,-1137.47940458,0.00011105,2]
[332848504,1721577042753,-214.65162402,0.00011105,2]
[332848506,1721577042763,-843.60563306,0.00011206,2]
[332848508,1721577042772,-957.97321156,0.00011206,2]
[332848509,1721577042782,-4470.48250681,0.00011324,2]
[332848511,1721577042793,-806.95,0.00011325,2]
[332848513,1721577042803,-150.0,0.00011342,2]
[332848515,1721577042813,-300.0,0.00011382,2]
[332848517,1721577042825,-6758.57608726,0.00011383,2]
[332848519,1721577042834,-150.0,0.00011383,2]
[332848521,1721577042844,-2837.16238839,0.00011384,2]
[332848523,1721577042858,-652.64700985,0.00011384,2]
[332848525,1721577042867,-3523.3771,0.00011384,2]
[332848526,1721577042876,-72238.27813749,0.00011384,2]
[332848529,1721577042887,-10816.48049096,0.00011384,2]
[332848531,1721577042906,-16356.34927155,0.00011384,2]
[332848533,1721577042916,-1000.0,0.00011384,2]
[332848535,1721577042927,-598.1324,0.00011384,2]
[332848537,1721577042936,-679.8807,0.00011384,2]
[332848539,1721577042946,-1271.727,0.00011384,2]
[332848541,1721577042955,-27975.0,0.00011431,2]
[332848543,1721577042965,-150.0,0.000115,2]
[332848544,1721577042974,-150.0,0.000115,2]
[332848546,1721577042983,-150.0,0.000115,2]
[332848548,1721577042992,-150.0,0.000115,2]
[332848550,1721577043002,-2918.32,0.000115,2]
[332848552,1721577043011,-203.19,0.000115,2]
[332848554,1721577043021,-499.99,0.000115,2]
[332848556,1721577043030,-150.99,0.000115,2]
[332848557,1721577043040,-379.80832865,0.00011525,2]
[332848559,1721577043049,-155.46381169,0.00011525,2]
[332848561,1721577043058,-3103.9289,0.00011694,2]
[332848563,1721577043067,-529.74,0.000117,2]
[332848565,1721577043077,-425.36,0.000117,2]
[332848567,1721577043086,-165.25,0.000117,2]
[332848569,1721577043095,-150.0,0.000117,2]
[332848571,1721577043104,-871.52597,0.0001178,2]
[332848572,1721577043115,-5104.7324,0.00011794,2]
[332848574,1721577043124,-1000.0,0.000118,2]
[332848576,1721577043134,-1000.0,0.000118,2]
[332848577,1721577043143,-678.77990757,0.000118,2]
[332848578,1721577043152,-710.7929193,0.000118,2]
[332848579,1721577043161,-1314.0,0.000118,2]
[332848580,1721577043170,-150.0,0.000118,3]
[332848581,1721577043180,-160.13713916,0.000118,2]
[332848582,1721577043189,-425.36,0.000118,2]
[332848583,1721577043198,-425.36,0.000118,2]
[332848584,1721577043208,-839.03,0.000118,2]
[332848585,1721577043217,-151.68,0.000118,2]
[332848586,1721577043226,-303.07,0.000118,2]
[332848587,1721577043236,-425.36,0.000118,2]
[332848588,1721577043245,-355.69,0.000118,2]
[332848589,1721577043255,-529.74,0.000118,2]
[332848590,1721577043264,-150.0,0.000118,2]
[332848591,1721577043273,-165.25,0.000118,2]
[332848592,1721577043283,-7500.0,0.000118,2]
[332848593,1721577043297,-529.74,0.000118,2]
[332848594,1721577043307,-425.36,0.000118,2]
[332848595,1721577043317,-355.69,0.000118,2]
[332848596,1721577043327,-150.0,0.000118,2]
[332848597,1721577043339,-165.25,0.000118,2]
[332848599,1721577043349,-425.36,0.000118,2]
[332848600,1721577043358,-355.69,0.000118,2]
[332848601,1721577043368,-150.0,0.000118,2]
[332848602,1721577043377,-529.74,0.000118,2]
[332848603,1721577043387,-165.25,0.000118,2]
[332848604,1721577043396,-150.0,0.000118,2]
[332848605,1721577043407,-331.43,0.000118,2]
[332848606,1721577043416,-425.36,0.000118,2]
[332848607,1721577043426,-165.25,0.000118,2]
[332848608,1721577043435,-529.74,0.000118,2]
[332848609,1721577043445,-500.0,0.00011805,2]
[332848610,1721577043454,-1000.0,0.0001184,2]
[332848611,1721577043463,-1000.0,0.0001184,2]
[332848613,1721577043473,-1000.0,0.0001184,2]
[332848614,1721577043482,-1000.0,0.0001184,2]
[332848616,1721577043491,-1000.0,0.0001184,2]
[332848617,1721577043500,-1000.0,0.0001184,2]
[332848619,1721577043509,-1000.0,0.0001184,2]
[332848621,1721577043519,-1000.0,0.0001184,2]
[332848623,1721577043528,-1000.0,0.0001184,2]
[332848625,1721577043538,-1000.0,0.0001184,2]
[332848627,1721577043547,-295.25664693,0.0001185,2]
[332848629,1721577043556,-484.49996538,0.0001185,2]
[332848631,1721577043566,-210.65596664,0.0001185,2]
[332848633,1721577043575,-181.62523259,0.0001185,2]
[332848635,1721577043584,-169.62969539,0.0001185,2]
[332848637,1721577043594,-155.0,0.00011896,2]
[332848639,1721577043603,-155.0,0.00011896,2]
[332848640,1721577043612,-209.87546738,0.00011899,2]
[332848642,1721577043622,-1288.73425664,0.00011899,2]
[332848643,1721577043631,-195239.24048978,0.000119,2]
[332848644,1721577043645,-472367.00000033,0.000119,2]
[332848900,1721577046992,-898.43524221,0.00011321,2]
[332848918,1721577048096,-1612.82621484,0.00011321,2]
[332848926,1721577190153,-291.12934828,0.000121,30]
[332848927,1721577190211,-150.0,0.00015,15]
[332848928,1721577190537,-1525.38,0.00018849,30]
[332848929,1721577190604,-4289.80963422,0.0002,15]
[332848930,1721577190644,-198.20156149,0.0002001,30]
[332848931,1721577190686,-1525.38,0.00023831,30]
[332848932,1721577190728,-671.24990319,0.000269,30]
[332848933,1721577190764,-500.0,0.00028219,120]
[332848934,1721577190799,-1525.38,0.00028812,30]
[332848935,1721577190839,-500.0,0.00029041,120]
[332848936,1721577190875,-571.19443531,0.0003,120]
[332848937,1721577190917,-288.76,0.00030685,120]
[332848938,1721577190952,-1000.0,0.000314,30]
[332848939,1721577190989,-492.0,0.000318,16]
[332848940,1721577191025,-9484365.36,0.00032,15]
[332848941,1721577191060,-86683.59,0.000325,15]
[332848942,1721577191096,-621.97897978,0.00032815,30]
[332848943,1721577191129,-22455.13984873,0.00032865,30]
[332848944,1721577191169,-2501.34418487,0.000329,30]
[332848945,1721577191210,-490.46,0.00033151,120]
[332848946,1721577191247,-1525.38,0.00033793,30]
[332848947,1721577191283,-1590.60115484,0.000343,30]
[332848948,1721577191317,-7444.54769,0.000348,30]
[332848949,1721577191353,-9926.063586,0.00035,30]
[332848950,1721577191388,-12407.579483,0.000355,30]
[332848951,1721577191423,-14889.09538,0.000356,30]
[332848952,1721577191458,-14889.09538,0.000357,30]
[332848953,1721577191493,-17370.611277,0.000358,30]
[332848954,1721577191529,-14889.09538,0.0003582,30]
[332848955,1721577191587,-150.6,0.00036544,15]
[332848956,1721577191623,-152.0,0.00037233,15]
[332848957,1721577191658,-152.0,0.00037923,15]
[332848958,1721577191696,-152.0,0.00038612,15]
[332848959,1721577191734,-1525.38,0.00038775,30]
[332848960,1721577191770,-458.18330433,0.00039,120]
[332848961,1721577191803,-152.0,0.00039301,15]
[332848962,1721577191839,-152.0,0.0003999,15]
[332848963,1721577191874,-3000.0,0.0004,90]
[332848964,1721577191909,-45623.2521052,0.0004,30]
[332848965,1721577191947,-171.68155615,0.0004,30]
[332848966,1721577191983,-4837.71894491,0.0004,30]
[332848967,1721577192016,-150.0,0.0004,60]
[332848968,1721577192052,-152.0,0.0004068,15]
[332848969,1721577192089,-50000.0,0.00041,41]
[332848970,1721577192123,-668.57,0.00041,120]
[332848971,1721577192156,-224.50379355,0.0004122,30]
[332848972,1721577192191,-150.0,0.0004122,30]
[332848973,1721577192225,-150.0,0.0004122,30]
[332848974,1721577192259,-150.0,0.0004122,30]
[332848975,1721577192295,-150.0,0.0004122,30]
[332848976,1721577192330,-271.63739308,0.0004122,30]
[332848977,1721577192364,-150.0,0.0004122,30]
[332848978,1721577192399,-150.0,0.0004122,30]
[332848979,1721577192434,-150.0,0.0004122,30]
[332848980,1721577192470,-150.0,0.0004122,30]
[332848981,1721577192507,-150.0,0.0004122,30]
[332848982,1721577192541,-161.49472691,0.0004122,30]
[332848983,1721577192576,-150.0,0.0004122,30]
[332848984,1721577192611,-150.0,0.0004122,30]
[332848985,1721577192647,-224.50379355,0.00041266,30]
[332848986,1721577192681,-150.0,0.00041296,30]
[332848987,1721577192716,-224.50379355,0.00041313,30]
[332848988,1721577192749,-150.0,0.00041315,30]
[332848989,1721577192785,-224.50379355,0.00041359,30]
[332848990,1721577192821,-152.0,0.00041369,31]
[332848991,1721577192856,-150.0,0.00041373,30]
[332848992,1721577192893,-224.50379355,0.00041405,30]
[332848993,1721577192931,-150.0,0.00041411,30]
[332848994,1721577192968,-1500.0,0.00041416,30]
[332848995,1721577193003,-1700.0,0.00041416,30]
[332848996,1721577193039,-500.0,0.00041416,30]
[332848997,1721577193076,-150.0,0.00041449,30]
[332848998,1721577193115,-150.0,0.00041449,30]
[332848999,1721577193152,-224.50379355,0.00041451,30]
[332849000,1721577193188,-224.50379355,0.00041498,30]
[332849001,1721577193224,-150.0,0.00041506,30]
[332849002,1721577193261,-793.0,0.00041515,30]
[332849003,1721577193298,-150.0,0.00041525,30]
[332849004,1721577193336,-150.0,0.00041525,30]
[332849005,1721577193375,-224.50379355,0.00041544,30]
[332849006,1721577193413,-224.50379355,0.0004159,30]
[332849007,1721577193451,-150.0,0.00041602,30]
[332849008,1721577193490,-150.0,0.00041602,30]
[332849009,1721577193526,-150.0,0.00041602,30]
[332849010,1721577193562,-224.50379355,0.00041636,30]
[332849011,1721577193599,-150.0,0.00041678,30]
[332849012,1721577193634,-150.0,0.00041678,30]
[332849013,1721577193669,-224.50379355,0.00041683,30]
[332849014,1721577193705,-150.0,0.00041697,30]
[332849015,1721577193739,-224.50379355,0.00041729,30]
[332849016,1721577193772,-150.0,0.00041754,30]
[332849017,1721577193806,-224.50379355,0.00041775,30]
[332849018,1721577193840,-150.0,0.00041793,30]
[332849019,1721577193874,-224.50379355,0.00041821,30]
[332849020,1721577193911,-150.0,0.00041831,30]
[332849021,1721577193949,-150.0,0.00041831,30]
[332849022,1721577193986,-224.50379355,0.00041868,30]
[332849023,1721577194021,-150.0,0.00041888,30]
[332849024,1721577194055,-150.0,0.00041907,30]
[332849025,1721577194090,-150.0,0.00041907,30]
[332849026,1721577194128,-224.50379355,0.00041914,30]
[332849027,1721577194166,-224.50379355,0.0004196,30]
[332849028,1721577194203,-1500.0,0.00041964,30]
[332849029,1721577194439,-1700.0,0.00041964,30]
[332849030,1721577194480,-500.0,0.00041964,30]
[332849031,1721577194518,-500.0,0.00041964,30]
[332849032,1721577194554,-379.73372352,0.00041964,30]
[332849033,1721577194590,-150.0,0.00041983,30]
[332849034,1721577194628,-150.0,0.00041983,30]
[332849035,1721577194665,-150.0,0.00041983,30]
[332849036,1721577194703,-50000.0,0.00042,42]
[332849037,1721577194737,-160.0,0.00042,17]
[332849038,1721577194774,-117889.75652884,0.00042,120]
[332849040,1721577343198,-160.37287094,0.00010896,2]
[332849041,1721577343650,-160.37287094,0.00010896,2]
[332849042,1721577345271,-160.37287094,0.00010896,2]
[332849043,1721577346276,-160.37287094,0.00010896,2]
[332849044,1721577346687,-160.37287094,0.00010896,2]
[332849045,1721577361371,-160.37287094,0.00010893,2]
[332849046,1721577361796,-160.37287094,0.00010893,2]
[332849047,1721577362267,-160.37287094,0.00010893,2]
[332849048,1721577362727,-160.37287094,0.00010893,2]
[332849049,1721577363179,-160.37287094,0.00010893,2]
[332849050,1721577363839,-150.0,0.00010893,2]
[332849051,1721577364286,-150.0,0.00010893,2]
[332849052,1721577364741,-150.0,0.00010893,2]
[332849053,1721577365185,-150.0,0.00010893,2]
[332849054,1721577365602,-150.0,0.00010893,2]
[332849055,1721577366048,-150.0,0.00010893,2]